[Event "*** SCC Grand Prix: Titled Tuesday Blitz"]
[Site "Chess.com"]
[Date "2020.10.06"]
[Round "10"]
[White "Alindsay211"]
[Black "vinniethepooh"]
[Result "1-0"]
[WhiteElo "2432"]
[BlackElo "2553"]
[TimeControl "180+1"]
[EndTime "11:58:39 PDT"]
[Termination "Alindsay211 won by resignation"]

1. e4 {[%clk 0:03:00.9]} 1... c5 {[%clk 0:02:59.8]} 2. Nf3 {[%clk 0:03:00.3]}
2... d6 {[%clk 0:03:00.4]} 3. d4 {[%clk 0:02:56.3]} 3... cxd4 {[%clk 0:03:01.3]}
4. Nxd4 {[%clk 0:02:56.2]} 4... Nf6 {[%clk 0:03:01.9]} 5. Nc3 {[%clk 0:02:48.9]}
5... a6 {[%clk 0:03:02]} 6. Be3 {[%clk 0:02:48.6]} 6... e5 {[%clk 0:03:01.9]} 7.
Nb3 {[%clk 0:02:48.3]} 7... Be7 {[%clk 0:03:02.4]} 8. f3 {[%clk 0:02:42.7]} 8...
O-O {[%clk 0:03:02.9]} 9. Qd2 {[%clk 0:02:39.5]} 9... Be6 {[%clk 0:03:03.4]} 10.
O-O-O {[%clk 0:02:36.1]} 10... Nbd7 {[%clk 0:03:03.9]} 11. Kb1 {[%clk
0:02:33.1]} 11... b5 {[%clk 0:03:02.3]} 12. g4 {[%clk 0:02:27.3]} 12... b4
{[%clk 0:02:30.2]} 13. Nd5 {[%clk 0:02:24.5]} 13... Bxd5 {[%clk 0:02:30.4]} 14.
exd5 {[%clk 0:02:23.5]} 14... Nb6 {[%clk 0:02:31]} 15. Bxb6 {[%clk 0:02:13.1]}
15... Qxb6 {[%clk 0:02:31.9]} 16. Qd3 {[%clk 0:02:06.3]} 16... Rfc8 {[%clk
0:02:05.8]} 17. Nd2 {[%clk 0:01:54.3]} 17... Rc7 {[%clk 0:01:29.8]} 18. h4
{[%clk 0:01:48.2]} 18... Rac8 {[%clk 0:01:28.5]} 19. Rc1 {[%clk 0:01:47.3]}
19... a5 {[%clk 0:01:24.2]} 20. Ne4 {[%clk 0:01:40.3]} 20... Nd7 {[%clk
0:01:04.1]} 21. g5 {[%clk 0:01:34.1]} 21... a4 {[%clk 0:01:01.8]} 22. Bh3 {[%clk
0:01:30.2]} 22... Rb8 {[%clk 0:00:45.4]} 23. Bxd7 {[%clk 0:01:21.6]} 23... Rxd7
{[%clk 0:00:46.3]} 24. h5 {[%clk 0:01:18.2]} 24... Rc7 {[%clk 0:00:31.4]} 25.
Rhg1 {[%clk 0:01:13.6]} 25... a3 {[%clk 0:00:23.1]} 26. b3 {[%clk 0:01:08.4]}
26... Kh8 {[%clk 0:00:22.3]} 27. h6 {[%clk 0:01:02.6]} 27... g6 {[%clk 0:00:21]}
28. Qd2 {[%clk 0:00:58.3]} 28... Rbc8 {[%clk 0:00:19.4]} 29. Rh1 {[%clk
0:00:49.3]} 29... Qb5 {[%clk 0:00:13.2]} 30. Rhf1 {[%clk 0:00:48]} 30... Rxc2
{[%clk 0:00:06.8]} 31. Rxc2 {[%clk 0:00:44]} 31... Qxf1+ {[%clk 0:00:06.1]} 32.
Rc1 {[%clk 0:00:40.7]} 32... Rxc1+ {[%clk 0:00:06.2]} 33. Qxc1 {[%clk 0:00:40]}
33... Qd3+ {[%clk 0:00:03.6]} 34. Qc2 {[%clk 0:00:37]} 34... Qf1+ {[%clk
0:00:03.7]} 35. Qc1 {[%clk 0:00:36.4]} 35... Qd3+ {[%clk 0:00:03.9]} 36. Qc2
{[%clk 0:00:36]} 36... Qa6 {[%clk 0:00:04.5]} 37. Qc4 {[%clk 0:00:29.7]} 37...
Qxc4 {[%clk 0:00:02.3]} 38. bxc4 {[%clk 0:00:29.2]} 38... Kg8 {[%clk 0:00:02.6]}
39. Kc2 {[%clk 0:00:29]} 39... Bd8 {[%clk 0:00:02.3]} 40. Kb3 {[%clk 0:00:28.6]}
40... Bb6 {[%clk 0:00:02]} 41. Nxd6 {[%clk 0:00:25.7]} 41... Bc5 {[%clk
0:00:01.3]} 42. Ne4 {[%clk 0:00:23.5]} 42... Bd4 {[%clk 0:00:01.5]} 43. c5
{[%clk 0:00:23.4]} 43... Kf8 {[%clk 0:00:01.4]} 44. Kxb4 {[%clk 0:00:23.5]}
44... Ke7 {[%clk 0:00:02.2]} 45. Kxa3 {[%clk 0:00:23.1]} 45... Kd7 {[%clk
0:00:01.7]} 46. Kb4 {[%clk 0:00:23.1]} 46... Kc7 {[%clk 0:00:02.6]} 47. Kb5
{[%clk 0:00:23.2]} 47... Be3 {[%clk 0:00:03.2]} 48. d6+ {[%clk 0:00:24.1]} 48...
Kd7 {[%clk 0:00:02.7]} 49. c6+ {[%clk 0:00:24.9]} 49... Ke6 {[%clk 0:00:03.3]}
50. d7 {[%clk 0:00:24.8]} 50... Ke7 {[%clk 0:00:03.6]} 51. Kc4 {[%clk
0:00:23.8]} 51... Bb6 {[%clk 0:00:03.5]} 52. Kd5 {[%clk 0:00:24.1]} 52... Bc7
{[%clk 0:00:02.5]} 53. a4 {[%clk 0:00:23.6]} 53... Kd8 {[%clk 0:00:02.5]} 54.
Nf6 {[%clk 0:00:23.5]} 54... Ke7 {[%clk 0:00:02.7]} 55. Nxh7 {[%clk 0:00:23]}
55... Kd8 {[%clk 0:00:02.3]} 56. Nf6 {[%clk 0:00:22.9]} 1-0

[Event "*** SCC Grand Prix: Titled Tuesday Blitz"]
[Site "Chess.com"]
[Date "2020.10.06"]
[Round "10"]
[White "Bulldog167"]
[Black "TomiLen"]
[Result "0-1"]
[WhiteElo "2759"]
[BlackElo "2588"]
[TimeControl "180+1"]
[EndTime "11:58:41 PDT"]
[Termination "TomiLen won by resignation"]

1. e4 {[%clk 0:03:00.9]} 1... e6 {[%clk 0:02:59.7]} 2. Ke2 {[%clk 0:02:59.5]}
2... d5 {[%clk 0:02:58.7]} 3. d3 {[%clk 0:03:00]} 3... Nf6 {[%clk 0:02:57.7]} 4.
f3 {[%clk 0:02:55.8]} 4... c5 {[%clk 0:02:56.7]} 5. g3 {[%clk 0:02:54.9]} 5...
Nc6 {[%clk 0:02:56.3]} 6. c3 {[%clk 0:02:54.4]} 6... b6 {[%clk 0:02:56.5]} 7.
Ke1 {[%clk 0:02:44.3]} 7... Be7 {[%clk 0:02:54.2]} 8. Bg2 {[%clk 0:02:42.5]}
8... O-O {[%clk 0:02:53]} 9. Ne2 {[%clk 0:02:43.1]} 9... Ba6 {[%clk 0:02:52.9]}
10. Be3 {[%clk 0:02:38.6]} 10... e5 {[%clk 0:02:43.9]} 11. Bf2 {[%clk 0:02:32]}
11... Qc7 {[%clk 0:02:21.6]} 12. Qc2 {[%clk 0:02:27.2]} 12... Rad8 {[%clk
0:02:19.9]} 13. Nd2 {[%clk 0:02:24.1]} 13... dxe4 {[%clk 0:02:16.2]} 14. dxe4
{[%clk 0:02:24.5]} 14... Bd3 {[%clk 0:02:16.2]} 15. Qc1 {[%clk 0:02:24.8]} 15...
c4 {[%clk 0:02:13.6]} 16. Nf1 {[%clk 0:02:21.6]} 16... Na5 {[%clk 0:02:09.8]}
17. Ne3 {[%clk 0:02:20]} 17... Nb7 {[%clk 0:02:07.1]} 18. Nf5 {[%clk 0:02:19.5]}
18... Bc5 {[%clk 0:02:04.8]} 19. Qg5 {[%clk 0:02:18.4]} 19... Ne8 {[%clk
0:01:40.8]} 20. Rd1 {[%clk 0:01:44.8]} 20... f6 {[%clk 0:01:32.3]} 21. Qc1
{[%clk 0:01:44.2]} 21... Ned6 {[%clk 0:01:29.4]} 22. Ne3 {[%clk 0:01:37.5]}
22... Bxe3 {[%clk 0:01:24.5]} 23. Bxe3 {[%clk 0:01:35.4]} 23... Nc5 {[%clk
0:01:22.2]} 24. Kf2 {[%clk 0:01:35.1]} 24... Ndb7 {[%clk 0:01:17.7]} 25. Rhe1
{[%clk 0:01:32.9]} 25... Rd6 {[%clk 0:01:14.7]} 26. Kg1 {[%clk 0:01:28.3]} 26...
Rfd8 {[%clk 0:01:13.8]} 27. Rd2 {[%clk 0:01:25.8]} 27... a5 {[%clk 0:00:57.2]}
28. Qd1 {[%clk 0:01:11.7]} 28... b5 {[%clk 0:00:55.1]} 29. Nc1 {[%clk
0:01:09.8]} 29... a4 {[%clk 0:00:54.4]} 30. a3 {[%clk 0:00:59.6]} 30... Nb3
{[%clk 0:00:50]} 31. Nxb3 {[%clk 0:00:59.3]} 31... axb3 {[%clk 0:00:50.6]} 32.
Qc1 {[%clk 0:00:50.3]} 32... Nc5 {[%clk 0:00:49.9]} 33. Red1 {[%clk 0:00:35.8]}
33... Na4 {[%clk 0:00:48.6]} 34. f4 {[%clk 0:00:30.7]} 34... Bc2 {[%clk
0:00:48]} 35. Rxd6 {[%clk 0:00:29.8]} 35... Rxd6 {[%clk 0:00:48.9]} 36. Rf1
{[%clk 0:00:21.2]} 36... Rd8 {[%clk 0:00:44.9]} 37. fxe5 {[%clk 0:00:20]} 37...
Qxe5 {[%clk 0:00:45]} 38. Bf4 {[%clk 0:00:15.3]} 38... Qe7 {[%clk 0:00:44.1]}
39. Kh1 {[%clk 0:00:14.7]} 39... Bxe4 {[%clk 0:00:42]} 40. Re1 {[%clk
0:00:15.1]} 40... Bxg2+ {[%clk 0:00:41]} 41. Kxg2 {[%clk 0:00:16]} 41... Qb7+
{[%clk 0:00:40.8]} 42. Kh3 {[%clk 0:00:16.6]} 42... Qd7+ {[%clk 0:00:38.8]} 43.
Kg2 {[%clk 0:00:16.5]} 43... Re8 {[%clk 0:00:38.8]} 44. Rxe8+ {[%clk 0:00:15.8]}
44... Qxe8 {[%clk 0:00:38.8]} 45. Qd2 {[%clk 0:00:15.9]} 45... h6 {[%clk
0:00:37]} 46. Qd5+ {[%clk 0:00:14.9]} 46... Kh8 {[%clk 0:00:35.2]} 47. Qd2
{[%clk 0:00:11.9]} 47... Qe4+ {[%clk 0:00:34.9]} 48. Kh3 {[%clk 0:00:11.8]}
48... Kh7 {[%clk 0:00:34.6]} 49. Qf2 {[%clk 0:00:07.7]} 49... Qf5+ {[%clk
0:00:33.8]} 50. g4 {[%clk 0:00:07.4]} 50... Qd3+ {[%clk 0:00:33.1]} 51. Bg3
{[%clk 0:00:07.9]} 51... Qc2 {[%clk 0:00:28.7]} 52. Qa7 {[%clk 0:00:05.4]} 52...
Nxb2 {[%clk 0:00:25.9]} 53. Bd6 {[%clk 0:00:05.9]} 53... Qd3+ {[%clk 0:00:24.7]}
54. Bg3 {[%clk 0:00:04.9]} 54... Nd1 {[%clk 0:00:24.1]} 55. g5 {[%clk
0:00:03.8]} 55... hxg5 {[%clk 0:00:23.4]} 56. a4 {[%clk 0:00:04.2]} 56... b2
{[%clk 0:00:23.1]} 0-1

[Event "*** SCC Grand Prix: Titled Tuesday Blitz"]
[Site "Chess.com"]
[Date "2020.10.06"]
[Round "10"]
[White "ehrenfeld"]
[Black "Loy_Konstantin"]
[Result "1-0"]
[WhiteElo "2502"]
[BlackElo "2353"]
[TimeControl "180+1"]
[EndTime "11:58:43 PDT"]
[Termination "ehrenfeld won by resignation"]

1. e4 {[%clk 0:03:00.9]} 1... c5 {[%clk 0:02:59.6]} 2. Nc3 {[%clk 0:03:00.4]}
2... Nc6 {[%clk 0:02:59.4]} 3. Bb5 {[%clk 0:02:58.8]} 3... Nd4 {[%clk
0:02:59.3]} 4. Nf3 {[%clk 0:02:58.8]} 4... g6 {[%clk 0:02:58.4]} 5. Bc4 {[%clk
0:02:57.6]} 5... Bg7 {[%clk 0:02:57.5]} 6. O-O {[%clk 0:02:54.1]} 6... d6 {[%clk
0:02:47.1]} 7. Nxd4 {[%clk 0:02:34.7]} 7... cxd4 {[%clk 0:02:46.7]} 8. Nd5
{[%clk 0:02:30.6]} 8... Nf6 {[%clk 0:02:42.4]} 9. Nxf6+ {[%clk 0:02:30.3]} 9...
Bxf6 {[%clk 0:02:41.9]} 10. d3 {[%clk 0:02:26.3]} 10... O-O {[%clk 0:02:41.4]}
11. f4 {[%clk 0:02:24.6]} 11... e6 {[%clk 0:02:31.8]} 12. Bb3 {[%clk 0:02:23.2]}
12... Bg7 {[%clk 0:02:12.3]} 13. Bd2 {[%clk 0:02:21.7]} 13... d5 {[%clk
0:01:53.8]} 14. Qf3 {[%clk 0:02:04.5]} 14... dxe4 {[%clk 0:01:51]} 15. dxe4
{[%clk 0:02:04.7]} 15... d3 {[%clk 0:01:44.4]} 16. c3 {[%clk 0:01:20.5]} 16...
a5 {[%clk 0:01:36.4]} 17. Be3 {[%clk 0:00:51.6]} 17... a4 {[%clk 0:01:26.2]} 18.
Bc4 {[%clk 0:00:51.3]} 18... a3 {[%clk 0:01:26.4]} 19. b3 {[%clk 0:00:39.5]}
19... Bxc3 {[%clk 0:01:24.3]} 20. Rad1 {[%clk 0:00:39.1]} 20... d2 {[%clk
0:00:58.1]} 21. e5 {[%clk 0:00:38.7]} 21... Qc7 {[%clk 0:00:42.8]} 22. Bxd2
{[%clk 0:00:35]} 22... Bxd2 {[%clk 0:00:43.7]} 23. Rxd2 {[%clk 0:00:35]} 23...
Bd7 {[%clk 0:00:41.8]} 24. Rfd1 {[%clk 0:00:33.3]} 24... Bc6 {[%clk 0:00:41.5]}
25. Qe3 {[%clk 0:00:33.2]} 25... Rfd8 {[%clk 0:00:40.5]} 26. Bf1 {[%clk
0:00:28.9]} 26... Rd5 {[%clk 0:00:35.7]} 27. Rxd5 {[%clk 0:00:28.1]} 27... Bxd5
{[%clk 0:00:35.1]} 28. Rc1 {[%clk 0:00:27.4]} 28... Qd8 {[%clk 0:00:31.5]} 29.
Qc5 {[%clk 0:00:25]} 29... b6 {[%clk 0:00:23.6]} 30. Qb4 {[%clk 0:00:21.4]}
30... Kg7 {[%clk 0:00:13.7]} 31. Bb5 {[%clk 0:00:20.8]} 31... h5 {[%clk
0:00:12.6]} 32. Rc3 {[%clk 0:00:18.6]} 32... Qf8 {[%clk 0:00:12.1]} 33. Qxf8+
{[%clk 0:00:12.8]} 33... Kxf8 {[%clk 0:00:13]} 34. Kf2 {[%clk 0:00:12.7]} 34...
Ke7 {[%clk 0:00:13]} 35. g3 {[%clk 0:00:12.9]} 35... Kd8 {[%clk 0:00:13.1]} 36.
Ke3 {[%clk 0:00:13]} 36... Bf3 {[%clk 0:00:12]} 37. Kxf3 {[%clk 0:00:12]} 37...
Ra5 {[%clk 0:00:12.2]} 38. Bd3 {[%clk 0:00:11.4]} 38... Rd5 {[%clk 0:00:10.7]}
39. Ke3 {[%clk 0:00:11.5]} 39... Kd7 {[%clk 0:00:09]} 40. b4 {[%clk 0:00:11.6]}
40... Kd8 {[%clk 0:00:08.2]} 41. Rxa3 {[%clk 0:00:11.7]} 41... Rd7 {[%clk
0:00:07.4]} 42. Ra8+ {[%clk 0:00:10.9]} 42... Ke7 {[%clk 0:00:07.6]} 43. Rb8
{[%clk 0:00:09.8]} 43... Ra7 {[%clk 0:00:07.7]} 44. Bc4 {[%clk 0:00:08.1]} 44...
Ra3+ {[%clk 0:00:07]} 45. Bb3 {[%clk 0:00:08.1]} 45... Ra6 {[%clk 0:00:05.7]}
46. b5 {[%clk 0:00:08.3]} 46... Ra7 {[%clk 0:00:04.9]} 47. Rxb6 {[%clk
0:00:08.7]} 47... Rc7 {[%clk 0:00:05.7]} 48. Kd4 {[%clk 0:00:08.5]} 48... Rc1
{[%clk 0:00:05.5]} 49. Rb7+ {[%clk 0:00:08.2]} 49... Kf8 {[%clk 0:00:05.6]} 50.
a4 {[%clk 0:00:07.7]} 50... Rb1 {[%clk 0:00:04.4]} 51. Kc3 {[%clk 0:00:07.9]}
51... Rc1+ {[%clk 0:00:04.4]} 52. Kb4 {[%clk 0:00:08.1]} 52... Rh1 {[%clk
0:00:03.6]} 53. a5 {[%clk 0:00:08.2]} 53... Rxh2 {[%clk 0:00:03.5]} 54. a6
{[%clk 0:00:08.7]} 1-0

[Event "*** SCC Grand Prix: Titled Tuesday Blitz"]
[Site "Chess.com"]
[Date "2020.10.06"]
[Round "10"]
[White "CM_rui"]
[Black "GMJustin"]
[Result "0-1"]
[WhiteElo "2345"]
[BlackElo "2275"]
[TimeControl "180+1"]
[EndTime "11:58:49 PDT"]
[Termination "GMJustin won on time"]

1. e4 {[%clk 0:03:00.9]} 1... e5 {[%clk 0:02:57.7]} 2. Nf3 {[%clk 0:03:00.6]}
2... Nc6 {[%clk 0:02:57.2]} 3. Bb5 {[%clk 0:03:00.9]} 3... a6 {[%clk 0:02:56.4]}
4. Ba4 {[%clk 0:03:01.1]} 4... Nf6 {[%clk 0:02:55.5]} 5. O-O {[%clk 0:03:00.8]}
5... Be7 {[%clk 0:02:53.6]} 6. Re1 {[%clk 0:03:00.7]} 6... b5 {[%clk 0:02:52.6]}
7. Bb3 {[%clk 0:03:01.3]} 7... d6 {[%clk 0:02:45.9]} 8. c3 {[%clk 0:03:01]} 8...
O-O {[%clk 0:02:44.1]} 9. h3 {[%clk 0:03:01.5]} 9... a5 {[%clk 0:02:38]} 10. d4
{[%clk 0:02:55.3]} 10... a4 {[%clk 0:02:36.7]} 11. Bc2 {[%clk 0:02:54.8]} 11...
Bd7 {[%clk 0:02:36.4]} 12. Nbd2 {[%clk 0:02:47.2]} 12... Re8 {[%clk 0:02:33.1]}
13. Nf1 {[%clk 0:02:45.3]} 13... h6 {[%clk 0:02:28.6]} 14. Ng3 {[%clk
0:02:35.7]} 14... Bf8 {[%clk 0:02:17.6]} 15. Be3 {[%clk 0:02:24.2]} 15... g6
{[%clk 0:02:07.4]} 16. Qd2 {[%clk 0:02:23.5]} 16... Kh7 {[%clk 0:02:05.1]} 17.
Nh2 {[%clk 0:02:20.4]} 17... Na5 {[%clk 0:01:54.5]} 18. b3 {[%clk 0:02:13.2]}
18... axb3 {[%clk 0:01:46.4]} 19. axb3 {[%clk 0:02:14.1]} 19... c5 {[%clk
0:01:26.4]} 20. d5 {[%clk 0:01:54.9]} 20... Ng8 {[%clk 0:01:09.5]} 21. f4 {[%clk
0:01:48.9]} 21... exf4 {[%clk 0:01:01.1]} 22. Bxf4 {[%clk 0:01:49.8]} 22... c4
{[%clk 0:00:54.3]} 23. b4 {[%clk 0:01:40.9]} 23... Nb3 {[%clk 0:00:54]} 24. Bxb3
{[%clk 0:01:25.9]} 24... cxb3 {[%clk 0:00:53.9]} 25. Qb2 {[%clk 0:01:25.7]}
25... Qh4 {[%clk 0:00:34.5]} 26. Rxa8 {[%clk 0:01:01.3]} 26... Rxa8 {[%clk
0:00:33.1]} 27. Ne2 {[%clk 0:00:59.6]} 27... Ra2 {[%clk 0:00:31.2]} 28. Qb1
{[%clk 0:00:52.8]} 28... Rxe2 {[%clk 0:00:26.7]} 29. Rxe2 {[%clk 0:00:53.7]}
29... Qxf4 {[%clk 0:00:25.4]} 30. Qxb3 {[%clk 0:00:52.3]} 30... Qc1+ {[%clk
0:00:22.5]} 31. Nf1 {[%clk 0:00:52.7]} 31... Bg7 {[%clk 0:00:22.3]} 32. Rf2
{[%clk 0:00:48.1]} 32... Nf6 {[%clk 0:00:19.7]} 33. Kh2 {[%clk 0:00:39.9]} 33...
Nxe4 {[%clk 0:00:17.3]} 34. Rxf7 {[%clk 0:00:39.8]} 34... Bf5 {[%clk 0:00:12.1]}
35. Ng3 {[%clk 0:00:20.4]} 35... Qf4 {[%clk 0:00:08.8]} 36. c4 {[%clk
0:00:20.4]} 36... bxc4 {[%clk 0:00:08.5]} 37. Qa3 {[%clk 0:00:14.1]} 37... c3
{[%clk 0:00:07.6]} 38. Qa7 {[%clk 0:00:07]} 38... Qxg3+ {[%clk 0:00:07.5]} 39.
Kg1 {[%clk 0:00:06.8]} 39... Qe5 {[%clk 0:00:07.5]} 40. Qc7 {[%clk 0:00:04.5]}
40... Nd2 {[%clk 0:00:06.7]} 41. b5 {[%clk 0:00:03.3]} 41... c2 {[%clk
0:00:06.3]} 42. b6 {[%clk 0:00:03]} 42... Qd4+ {[%clk 0:00:06.1]} 43. Kh2 {[%clk
0:00:03.6]} 43... Qe5+ {[%clk 0:00:05.1]} 44. Kg1 {[%clk 0:00:02.9]} 44... Nc4
{[%clk 0:00:04.5]} 45. Qxc4 {[%clk 0:00:02.1]} 45... Qe3+ {[%clk 0:00:04.4]} 46.
Kh2 {[%clk 0:00:02.2]} 46... c1=Q {[%clk 0:00:04]} 47. Rxg7+ {[%clk 0:00:02.7]}
47... Kxg7 {[%clk 0:00:02]} 48. Qb4 {[%clk 0:00:01.8]} 48... Kf6 {[%clk
0:00:01.8]} 49. b7 {[%clk 0:00:01.6]} 49... Qf4+ {[%clk 0:00:01.8]} 0-1

[Event "*** SCC Grand Prix: Titled Tuesday Blitz"]
[Site "Chess.com"]
[Date "2020.10.06"]
[Round "10"]
[White "aloe_normansen"]
[Black "dominikaf"]
[Result "1-0"]
[WhiteElo "2355"]
[BlackElo "2250"]
[TimeControl "180+1"]
[EndTime "11:58:49 PDT"]
[Termination "aloe_normansen won on time"]

1. e4 {[%clk 0:03:00.9]} 1... e5 {[%clk 0:02:59.7]} 2. Nf3 {[%clk 0:03:00.6]}
2... Nc6 {[%clk 0:02:59.8]} 3. d4 {[%clk 0:03:00.9]} 3... exd4 {[%clk
0:02:59.6]} 4. Nxd4 {[%clk 0:03:01.8]} 4... Bc5 {[%clk 0:02:59.6]} 5. Nb3 {[%clk
0:02:59.4]} 5... Bb6 {[%clk 0:02:59.1]} 6. Nc3 {[%clk 0:02:55.4]} 6... Nge7
{[%clk 0:02:59.1]} 7. Be2 {[%clk 0:02:46.3]} 7... d6 {[%clk 0:02:51.8]} 8. O-O
{[%clk 0:02:46]} 8... O-O {[%clk 0:02:52.2]} 9. Bg5 {[%clk 0:02:39.7]} 9... h6
{[%clk 0:02:48.6]} 10. Bh4 {[%clk 0:02:38.9]} 10... g5 {[%clk 0:02:48]} 11. Bg3
{[%clk 0:02:38.1]} 11... f5 {[%clk 0:02:48.7]} 12. exf5 {[%clk 0:02:36.6]} 12...
Nxf5 {[%clk 0:02:49.6]} 13. Bc4+ {[%clk 0:02:35.1]} 13... Kg7 {[%clk 0:02:46.7]}
14. Kh1 {[%clk 0:02:27.8]} 14... Nxg3+ {[%clk 0:02:42]} 15. fxg3 {[%clk
0:02:28.7]} 15... Rxf1+ {[%clk 0:02:39.7]} 16. Qxf1 {[%clk 0:02:29.6]} 16... Ne5
{[%clk 0:02:39.1]} 17. a4 {[%clk 0:02:08.5]} 17... Qf6 {[%clk 0:02:18]} 18. a5
{[%clk 0:01:59.8]} 18... Qxf1+ {[%clk 0:01:56.3]} 19. Bxf1 {[%clk 0:02:00.7]}
19... Bc5 {[%clk 0:01:46.7]} 20. Nd5 {[%clk 0:01:48.5]} 20... Bf5 {[%clk
0:01:12.9]} 21. Nxc5 {[%clk 0:01:42.5]} 21... dxc5 {[%clk 0:01:10.6]} 22. Re1
{[%clk 0:01:35.4]} 22... Nc6 {[%clk 0:00:47.4]} 23. Nxc7 {[%clk 0:01:26.3]}
23... Rc8 {[%clk 0:00:44.2]} 24. Ne8+ {[%clk 0:01:24.7]} 24... Kg6 {[%clk
0:00:36.3]} 25. Nd6 {[%clk 0:01:13.4]} 25... Rc7 {[%clk 0:00:33.8]} 26. Nxf5
{[%clk 0:01:07.5]} 26... Kxf5 {[%clk 0:00:34.7]} 27. Bd3+ {[%clk 0:01:07.5]}
27... Kf6 {[%clk 0:00:34.3]} 28. Rf1+ {[%clk 0:01:06.1]} 28... Ke5 {[%clk
0:00:29.9]} 29. Rf5+ {[%clk 0:01:04.7]} 29... Kd4 {[%clk 0:00:29.6]} 30. h4
{[%clk 0:00:43.1]} 30... gxh4 {[%clk 0:00:20.2]} 31. gxh4 {[%clk 0:00:44]} 31...
Nxa5 {[%clk 0:00:13.4]} 32. Rf4+ {[%clk 0:00:42.8]} 32... Kd5 {[%clk 0:00:11]}
33. Rf5+ {[%clk 0:00:41.8]} 33... Ke6 {[%clk 0:00:09.6]} 34. Rh5 {[%clk
0:00:41.8]} 34... c4 {[%clk 0:00:09]} 35. Rxa5 {[%clk 0:00:40.7]} 35... cxd3
{[%clk 0:00:08.1]} 36. cxd3 {[%clk 0:00:41.6]} 36... a6 {[%clk 0:00:08.4]} 37.
Kh2 {[%clk 0:00:40.7]} 37... Rc2 {[%clk 0:00:06.9]} 38. b4 {[%clk 0:00:39.4]}
38... Rb2 {[%clk 0:00:05.5]} 39. Ra4 {[%clk 0:00:38.9]} 39... Kf6 {[%clk
0:00:04.1]} 40. Kh3 {[%clk 0:00:37.5]} 40... Rb3 {[%clk 0:00:03.8]} 41. Kg4
{[%clk 0:00:35]} 41... Rxd3 {[%clk 0:00:04.2]} 42. Kh5 {[%clk 0:00:32.4]} 42...
Rg3 {[%clk 0:00:03.7]} 43. Ra2 {[%clk 0:00:28.2]} 43... Rb3 {[%clk 0:00:03.9]}
44. Kxh6 {[%clk 0:00:25.7]} 44... Rxb4 {[%clk 0:00:03.2]} 45. Rf2+ {[%clk
0:00:26.3]} 45... Ke7 {[%clk 0:00:03]} 46. h5 {[%clk 0:00:25.5]} 46... Rg4
{[%clk 0:00:02.5]} 47. Rb2 {[%clk 0:00:21.6]} 47... b5 {[%clk 0:00:02.3]} 48.
Ra2 {[%clk 0:00:21.5]} 48... b4 {[%clk 0:00:02.1]} 49. Rxa6 {[%clk 0:00:20.6]}
49... Rxg2 {[%clk 0:00:02.5]} 50. Rb6 {[%clk 0:00:20.7]} 50... Rg4 {[%clk
0:00:02.7]} 51. Kh7 {[%clk 0:00:20]} 51... Kf7 {[%clk 0:00:02.3]} 52. h6 {[%clk
0:00:19.8]} 52... Rf4 {[%clk 0:00:01.9]} 53. Rb7+ {[%clk 0:00:19.4]} 53... Kf8
{[%clk 0:00:01.9]} 54. Kg6 {[%clk 0:00:19.1]} 54... Rg4+ {[%clk 0:00:01.3]} 55.
Kf5 {[%clk 0:00:19.2]} 1-0